bitfinex-derivatives/quotes_ETHF0:USTF0_20250828
["timestamp","ask_amount","ask_price","bid_price","bid_amount"]
[1756401092834,0.8769,4475.5,4475.4,1.271]
[1756401093147,0.8769,4475.5,4475.4,2.1736]
[1756401093544,1.64991,4475.6,4475.5,1.271]
[1756401093845,1.64991,4475.6,4475.5,2.1736]
[1756401094036,0.40206,4476.1,4475.5,2.1736]
[1756401094241,0.40206,4476.1,4475.1,1.00536]
[1756401094242,0.40206,4476.1,4476.0,2.1736]
[1756401094443,1.27896,4476.1,4476.0,2.1736]
[1756401094643,2.52676,4476.1,4476.0,2.1736]
[1756401094843,2.52676,4476.1,4475.5,1.271]
[1756401094844,0.40211,4475.6,4475.5,1.271]
[1756401095040,2.52681,4475.6,4475.5,2.1736]
[1756401095352,1.27904,4475.3,4475.2,0.9026]
[1756401095534,1.00541,4475.0,4474.3,4.4788]
[1756401095739,1.00541,4475.0,4473.5,4.4788]
[1756401095740,0.8769,4474.1,4473.5,4.4788]
[1756401095943,0.40228,4473.7,4473.6,2.1897]
[1756401096344,2.64408,4473.7,4473.6,0.9026]
[1756401096734,4.21339,4474.2,4473.6,2.1897]
[1756401096735,3.2078,4474.2,4473.6,2.1897]
[1756401096934,0.40227,4473.8,4473.7,2.1839]
[1756401097943,2.64407,4473.8,4473.7,2.1839]
[1756401098342,0.40227,4473.8,4473.7,2.1839]
[1756401098545,2.64407,4473.8,4473.7,2.1839]
[1756401098744,2.64407,4473.8,4473.7,0.8968]
[1756401099048,0.40227,4473.8,4473.7,2.1839]
[1756401099840,0.40226,4473.9,4473.7,0.8968]
[1756401100039,0.40226,4473.9,4473.8,2.1839]
[1756401100445,3.2078,4474.2,4473.8,0.8968]
[1756401100648,0.40218,4474.9,4474.7,1.2871]
[1756401100842,0.4021,4475.8,4475.2,0.8968]
[1756401101043,0.40212,4475.5,4475.4,2.1839]
[1756401101247,2.64392,4475.5,4475.4,0.8968]
[1756401101448,1.3477,4475.1,4474.9,1.2871]
[1756401101644,0.40213,4475.4,4475.0,2.58606]
[1756401101948,1.74983,4475.4,4475.3,2.1839]
[1756401102145,2.64397,4475.0,4474.9,0.8968]
[1756401102342,1.3477,4475.5,4474.9,2.58606]
[1756401102548,0.40212,4475.5,4475.4,2.1839]
[1756401103050,2.64392,4475.5,4475.4,2.1839]
[1756401103250,2.64392,4475.5,4474.7,0.40218]
[1756401103251,0.40216,4475.0,4474.9,2.1839]
[1756401103850,1.3477,4475.9,4475.3,1.2871]
[1756401104047,1.74978,4475.9,4475.8,0.8968]
[1756401104248,1.74978,4475.9,4475.4,2.1839]
[1756401104249,0.40212,4475.5,4475.4,2.1839]
[1756401104551,2.64392,4475.5,4475.4,0.8968]
[1756401104752,0.40216,4475.0,4474.9,2.1839]
[1756401105147,3.2078,4476.0,4475.9,2.1839]
[1756401105351,0.40206,4476.1,4476.0,2.1839]
[1756401105545,1.3477,4475.8,4475.6,2.1839]
[1756401105745,1.3477,4475.8,4475.7,2.1839]
[1756401105946,2.2418,4475.8,4475.7,2.1839]
[1756401106149,0.40207,4476.1,4475.7,2.1839]
[1756401106456,1.3477,4476.7,4476.1,1.2871]
[1756401106647,2.64381,4476.7,4476.6,2.1839]
[1756401106955,2.64381,4476.7,4476.6,0.8968]
[1756401107349,1.3477,4476.7,4476.3,2.1839]
[1756401107550,0.40204,4476.4,4476.3,2.1839]
[1756401108450,0.40204,4476.4,4475.2,3.2078]
[1756401108451,0.40212,4475.4,4475.3,2.1839]
[1756401108654,0.40212,4475.4,4475.3,2.46199769]
[1756401108955,0.40217,4474.9,4474.8,2.1839]
[1756401109146,0.40217,4474.9,4474.8,2.46202259]
[1756401109351,0.40217,4474.9,4474.8,2.1839]
[1756401110754,2.64397,4474.9,4474.8,2.1839]
[1756401111053,0.40217,4474.9,4474.8,2.1839]
[1756401111255,1.00532,4475.4,4474.8,2.1839]
[1756401111256,0.40211,4475.6,4474.9,1.2871]
[1756401111446,0.40216,4475.1,4475.0,1.17390904]
[1756401111649,0.40216,4475.1,4475.0,2.46100904]
[1756401114163,2.64396,4475.1,4475.0,0.27710904]
[1756401114456,0.40216,4475.1,4475.0,2.46100904]
[1756401114762,0.40214,4475.3,4475.2,2.1839]
[1756401114948,0.40214,4475.3,4475.2,2.46128163]
[1756401115552,1.00518,4476.1,4475.2,2.46128163]
[1756401115553,1.00505,4476.7,4476.2,1.2871]
[1756401115755,3.2078,4476.8,4476.2,2.1839]
[1756401115756,0.40204,4476.3,4476.2,2.1839]
[1756401115957,0.40204,4476.3,4476.2,2.46137033]
[1756401117062,0.40203,4476.5,4476.2,2.46137033]
[1756401117256,4.5555,4477.3,4476.7,0.8968]
[1756401117562,0.40195,4477.3,4477.2,2.1839]
[1756401117863,0.40194,4477.5,4477.2,1.17423288]
[1756401118060,0.40194,4477.5,4476.2,1.00514]
[1756401118061,0.40194,4477.5,4477.4,2.1839]
[1756401118261,0.40192,4477.7,4477.6,2.1839]
[1756401118469,0.40192,4477.7,4477.6,2.4613069]
[1756401119064,0.40192,4477.7,4477.6,2.46105208]
[1756401119260,1.3477,4478.2,4477.6,2.46105208]
[1756401119457,3.2078,4478.3,4477.7,0.27696742]
[1756401119657,0.4019,4477.9,4477.8,2.46086742]
[1756401120564,0.4019,4477.9,4477.8,2.1839]
[1756401121358,1.3477,4477.9,4477.3,1.2871]
[1756401121559,1.3477,4477.9,4477.7,2.1839]
[1756401121763,0.40191,4477.8,4477.7,2.1839]
[1756401122165,2.64371,4477.8,4477.7,2.1839]
[1756401122362,2.64371,4477.8,4477.7,0.8968]
[1756401122568,1.29601,4477.8,4477.7,2.1839]
[1756401122764,2.64371,4477.8,4477.7,2.1839]
[1756401122956,2.64371,4477.8,4476.8,1.2871]
[1756401122957,2.64379,4476.9,4476.8,1.2871]
[1756401123160,2.64379,4476.9,4476.8,0.27598872]
[1756401123360,0.4021,4475.7,4475.6,0.8968]
[1756401123864,0.40209,4475.8,4475.6,1.17281635]
[1756401124064,0.40209,4475.8,4475.7,2.45991635]
[1756401124364,0.40209,4475.8,4475.7,2.45990269]
[1756401124564,0.40209,4475.8,4475.7,2.1839]
[1756401124963,1.29619,4475.8,4475.7,2.1839]
[1756401125265,1.74979,4475.8,4475.7,1.2871]
[1756401126656,0.40209,4475.9,4475.7,1.2871]
[1756401126860,0.40206,4476.2,4475.8,0.40209]
[1756401127063,0.40206,4476.2,4475.9,1.3225]
[1756401127264,3.2078,4477.0,4475.9,1.54591]
[1756401127462,0.402,4476.9,4476.4,1.3225]
[1756401127862,3.60979,4477.0,4476.4,1.72453]
[1756401128066,3.60979,4477.0,4476.4,0.40203]
[1756401128265,3.60979,4477.0,4476.7,1.3225]
[1756401128570,0.40201,4476.7,4476.3,1.3225]
[1756401128772,0.402,4476.9,4476.5,0.40202]
[1756401129064,1.3011,4477.4,4476.7,1.3225]
[1756401130567,0.40199,4476.9,4476.7,1.3225]
[1756401130765,0.40199,4476.9,4476.8,2.1365]
[1756401130965,0.40197,4477.2,4477.1,0.814]
[1756401131160,1.3011,4477.5,4477.1,0.814]
[1756401131361,3.2078,4477.6,4477.5,0.814]
[1756401131567,3.60973,4477.6,4477.5,2.1365]
[1756401131768,3.2078,4477.6,4477.5,2.1365]
[1756401132664,0.8816,4477.7,4477.2,3.2078]
[1756401132868,1.3011,4477.7,4477.5,2.1365]
[1756401133065,2.58463,4477.6,4477.5,2.1365]
[1756401133265,2.58463,4477.6,4477.5,0.814]
[1756401133666,1.28361,4476.8,4476.7,1.3225]
[1756401133861,5.00483,4477.6,4476.2,3.2078]
[1756401133862,1.70314,4476.3,4476.2,3.2078]
[1756401134169,0.40208,4475.9,4475.8,1.3225]
[1756401134370,1.3011,4475.8,4475.7,3.2078]
[1756401134969,0.40214,4475.3,4475.2,4.5303]
[1756401136073,0.40218,4474.9,4474.7,4.5303]
[1756401136269,0.40218,4474.9,4474.8,1.3225]
[1756401136465,3.2078,4475.7,4475.2,1.00536]
[1756401136665,3.2078,4476.2,4476.0,0.40207]
[1756401137175,0.40204,4476.4,4476.0,0.40207]
[1756401137176,0.40204,4476.4,4476.0,1.3225]
[1756401137376,0.40204,4476.4,4475.8,1.3225]
[1756401137872,0.40202,4476.6,4476.3,1.3225]
[1756401138375,3.2078,4477.1,4476.5,1.3225]
[1756401138570,3.2078,4477.1,4476.4,0.40203]
[1756401138770,1.3011,4477.0,4476.4,0.40203]
[1756401138971,1.3011,4477.8,4476.2,1.3225]
[1756401139172,0.22337,4478.1,4477.0,0.40197]
[1756401139370,0.40194,4477.5,4477.0,0.40197]
[1756401139577,1.3011,4477.5,4477.1,0.40197]
[1756401139780,1.3011,4478.1,4477.4,1.72444]
[1756401139972,0.40191,4477.8,4477.4,0.40194]
[1756401140273,1.3011,4477.8,4477.6,1.3225]
[1756401140484,1.70301,4477.8,4477.6,1.3225]
[1756401140780,1.3011,4477.7,4477.6,1.3225]
[1756401141084,3.2078,4478.2,4477.6,1.3225]
[1756401141284,0.4019,4478.0,4477.6,1.3225]
[1756401141486,0.4019,4477.9,4477.6,1.3225]
[1756401141786,1.70299,4478.1,4477.8,1.3225]
[1756401141980,1.70299,4478.1,4477.7,0.40192]
[1756401142283,0.4019,4478.0,4477.6,1.3225]
[1756401142484,0.40192,4477.8,4477.3,0.40195]
[1756401142681,4.5089,4478.2,4477.4,1.3225]
[1756401142882,4.5089,4478.2,4477.4,1.72444]
[1756401143078,1.3011,4478.1,4477.4,1.72444]
[1756401143384,1.00472,4478.1,4477.2,1.3225]
[1756401143683,0.40195,4477.4,4477.0,0.40198]
[1756401143880,1.3011,4477.6,4477.3,0.40195]
[1756401144086,1.3011,4477.6,4477.4,1.3225]
[1756401144281,0.40196,4477.3,4476.9,1.3225]
[1756401144589,1.3011,4477.7,4477.4,0.40194]
[1756401144786,1.70299,4478.0,4477.1,3.2078]
[1756401144988,3.2078,4478.2,4477.8,1.3225]
[1756401144989,3.60968,4478.2,4477.8,1.3225]
[1756401145184,0.40188,4478.1,4477.6,1.3225]
[1756401145485,4.91078,4478.2,4478.0,1.3225]
[1756401145681,4.91078,4478.2,4478.1,1.3225]
[1756401145682,3.2078,4478.2,4478.1,1.3225]
[1756401145886,3.2078,4478.2,4478.1,2.1365]
[1756401146087,5.3905,4478.2,4478.1,0.814]
[1756401146591,3.2078,4478.2,4478.1,2.53838]
[1756401146794,0.40185,4478.5,4478.1,2.53838]
[1756401146990,0.40185,4478.5,4478.4,0.814]
[1756401147190,0.40185,4478.5,4478.4,2.1365]
[1756401147786,2.58455,4478.5,4478.4,2.1365]
[1756401147984,0.8816,4478.5,4478.4,2.1365]
[1756401148190,0.40647045,4478.6,4478.5,2.1365]
[1756401148588,2.58917045,4478.6,4478.5,2.1365]
[1756401148887,0.88623045,4478.6,4478.5,2.1365]
[1756401149192,0.00463045,4478.6,4478.5,2.1365]
[1756401150087,0.40187,4478.3,4478.1,3.2078]
[1756401150387,1.28348,4478.2,4477.8,0.40191]
[1756401150687,1.28348,4478.2,4477.8,1.21591]
[1756401150688,2.1827,4477.9,4477.8,1.21591]
[1756401150890,0.8816,4477.6,4477.5,3.2078]
[1756401151191,2.1827,4477.6,4477.5,5.3443]
[1756401151791,2.1827,4477.6,4477.5,0.814]
[1756401151991,0.8816,4477.6,4477.0,3.2078]
[1756401152186,1.3011,4477.1,4477.0,3.2078]
[1756401152392,2.1827,4477.1,4477.0,3.2078]
[1756401152793,0.40197,4477.2,4477.0,5.3443]
[1756401152992,0.40197,4477.2,4477.1,2.1365]
[1756401154495,2.30593,4477.6,4476.7,1.3225]
[1756401154695,0.40198,4477.1,4477.0,2.1365]
[1756401155194,1.00499,4476.9,4476.0,2.00204984]
[1756401155393,2.1827,4475.9,4475.6,4.11091805]
[1756401155598,2.58482,4475.5,4475.4,3.2078]
[1756401156092,2.50484,4475.2,4475.1,1.3225]
[1756401156892,2.50484,4475.2,4475.1,2.1639]
[1756401157088,3.2078,4475.7,4475.2,1.224]
[1756401157395,0.40206,4476.2,4476.1,2.0654]
[1756401157794,1.64531,4475.6,4475.5,2.0654]
[1756401158096,2.1027,4475.6,4475.5,2.0654]
[1756401158298,3.60984,4476.3,4476.2,0.8414]
[1756401158499,3.60984,4476.3,4476.2,2.0654]
[1756401159101,5.71254,4476.3,4476.2,2.0654]
[1756401159795,5.3105,4476.3,4475.5,1.224]
[1756401160092,0.40203,4476.5,4476.2,4.4318]
[1756401160297,4.451,4477.0,4476.2,4.4318]
[1756401160298,2.1027,4476.3,4476.2,1.224]
[1756401160694,2.50478,4476.0,4475.9,2.0654]
[1756401160899,2.1027,4475.7,4475.6,3.2078]
[1756401161699,1.26157,4476.1,4476.0,0.8414]
[1756401161899,2.50477,4476.1,4476.0,0.8414]
[1756401162100,1.64529,4475.9,4475.6,0.4021]
[1756401162300,1.64529,4475.9,4475.8,0.8414]
[1756401162600,3.2078,4476.9,4475.7,1.224]
[1756401162795,2.1027,4476.6,4475.9,0.40208]
[1756401162995,0.40204,4476.4,4476.0,0.40207]
[1756401163301,1.64524,4476.3,4476.1,1.224]
[1756401163705,1.64524,4476.3,4476.2,2.0654]
[1756401163898,0.8595,4475.3,4475.2,1.224]
[1756401164103,1.0052,4476.0,4475.0,5.20984984]
[1756401164104,2.1027,4475.1,4475.0,3.2078]
[1756401164504,1.2432,4475.1,4475.0,3.2078]
[1756401164694,0.40215,4475.2,4475.0,4.4318]
[1756401164900,1.64535,4475.2,4475.0,4.4318]
[1756401165304,1.64535,4475.2,4475.0,3.2078]
[1756401165504,1.64535,4475.2,4475.0,4.4318]
[1756401165699,1.2432,4475.1,4474.6,1.224]
[1756401165900,1.2432,4475.5,4474.7,0.40218]
[1756401166499,0.40214,4475.3,4474.6,1.224]
[1756401166898,0.40212,4475.5,4475.1,0.40215]
[1756401167109,1.2432,4475.6,4475.0,1.224]
[1756401167403,0.40206,4476.2,4474.9,3.2078]
[1756401167602,0.40207,4476.1,4475.4,1.224]
[1756401167909,0.40211,4475.6,4475.2,1.224]
[1756401168099,0.40213,4475.3,4475.2,2.0654]
[1756401168908,0.40212,4475.5,4475.4,0.8414]
[1756401169101,2.50482,4475.5,4475.4,2.0654]
[1756401169602,1.2432,4476.1,4475.9,0.8414]
[1756401169804,2.1027,4475.7,4474.9,3.2078]
[1756401170000,2.1027,4475.7,4475.0,1.224]
[1756401170302,1.64536,4475.0,4474.9,5.2732]
[1756401170604,2.50486,4475.0,4474.9,5.2732]
[1756401171601,2.50486,4475.0,4474.4,0.8414]
[1756401171602,2.50491,4474.5,4474.4,0.8414]
[1756401171802,2.50493,4474.2,4474.1,2.0654]
[1756401172803,0.40219,4474.8,4474.7,1.224]
[1756401173100,3.2078,4475.4,4475.3,1.224]
[1756401173304,3.2078,4475.4,4475.3,2.0654]
[1756401174102,3.2078,4475.4,4475.3,1.224]
[1756401174902,0.4021,4475.8,4474.9,1.224]
[1756401175103,3.2078,4475.9,4474.9,1.224]
[1756401175104,3.2078,4475.9,4475.8,1.224]
[1756401175603,4.451,4475.9,4475.8,1.224]
[1756401175804,3.2078,4476.4,4474.9,3.2078]
[1756401176005,3.2078,4476.4,4476.3,1.224]
[1756401176399,1.2432,4476.3,4475.7,1.224]
[1756401176609,1.2432,4476.3,4476.1,1.224]
[1756401176804,3.60984,4476.4,4476.1,1.224]
[1756401177307,3.2078,4476.4,4476.2,0.40205]
[1756401177511,3.2078,4476.4,4476.3,1.224]
[1756401178202,1.2432,4476.3,4475.5,1.224]
[1756401178803,1.64525,4476.3,4475.5,1.224]
[1756401179011,3.2078,4476.9,4475.9,3.2078]
[1756401179206,1.2432,4476.5,4476.2,0.40205]
[1756401179400,1.2432,4476.5,4476.3,1.224]
[1756401179599,1.2432,4476.5,4476.2,0.40205]
[1756401179600,1.2432,4476.4,4476.1,1.62606]
[1756401179805,3.2078,4476.9,4475.8,1.224]
[1756401180108,1.64525,4476.3,4475.8,0.40209]
[1756401180311,0.8595,4475.7,4475.6,0.4021]
[1756401180505,2.1027,4475.7,4475.6,0.4021]
[1756401180806,0.8595,4475.7,4475.6,1.224]
[1756401181007,2.1027,4475.5,4475.4,3.2078]
[1756401181310,2.1027,4475.5,4475.4,5.2732]
[1756401181714,0.8595,4475.5,4475.4,5.2732]
[1756401182206,0.40209,4475.8,4475.4,4.0492]
[1756401182411,2.50479,4475.8,4475.7,0.8414]
[1756401182710,2.1027,4475.5,4475.4,3.2078]
[1756401183811,1.6453,4475.7,4475.5,1.224]
[1756401184011,4.21291,4476.4,4475.5,1.224]
[1756401184012,3.2078,4476.4,4475.5,1.224]
[1756401184314,1.2432,4475.5,4475.4,3.2078]
[1756401184512,2.50482,4475.5,4475.4,3.2078]
[1756401184710,0.8595,4475.1,4475.0,1.224]
[1756401184909,2.50485,4475.1,4475.0,1.224]
[1756401185106,2.50485,4475.1,4474.2,2.00204984]
[1756401185107,1.00543,4474.9,4474.4,1.224]
[1756401185313,2.1027,4474.4,4474.3,3.2078]
[1756401185614,0.40226,4473.9,4473.8,1.224]
[1756401185907,0.40226,4473.9,4473.8,2.0654]
[1756401186112,2.45786,4473.9,4473.8,2.0654]
[1756401186505,0.40225,4474.0,4473.9,1.1583]
[1756401186816,0.40225,4474.0,4473.9,1.9302]
[1756401187012,0.4022,4474.6,4474.5,1.1583]
[1756401187216,2.4554,4474.6,4474.5,1.9302]
[1756401187408,0.40225,4474.1,4473.8,1.1583]
[1756401187610,0.40225,4474.1,4473.7,3.2078]
[1756401187611,2.45545,4474.1,4474.0,0.7719]
[1756401188114,2.0532,4474.1,4474.0,1.9302]
[1756401188709,0.40223,4474.3,4474.0,1.9302]
[1756401188905,0.40223,4474.3,4473.9,0.40226]
[1756401188906,2.0532,4474.2,4474.1,1.9302]
[1756401189317,1.1961,4474.7,4474.1,1.1583]
[1756401189506,2.0532,4474.4,4474.3,0.7719]
[1756401189706,3.2078,4475.4,4474.6,0.7719]
[1756401190012,1.1961,4474.5,4474.0,1.56055]
[1756401190316,2.0532,4474.1,4474.0,1.9302]
[1756401191509,0.8571,4474.1,4474.0,1.9302]
[1756401191917,1.1961,4474.0,4473.8,1.1583]
[1756401192215,2.0532,4473.9,4473.8,1.9302]
[1756401192411,0.8571,4474.5,4474.4,1.1583]
[1756401192619,2.0532,4474.6,4474.5,1.1583]
[1756401192915,0.40216,4475.1,4474.7,0.40219]
[1756401193118,0.8571,4475.0,4474.9,1.9302]
[1756401193312,0.40216,4475.1,4475.0,1.9302]
[1756401193710,2.45536,4475.1,4475.0,1.9302]
[1756401194210,2.45536,4475.1,4475.0,0.7719]
[1756401194822,2.0532,4475.1,4475.0,0.7719]
[1756401195220,0.40218,4474.9,4474.7,1.1583]
[1756401195421,3.2078,4475.5,4474.6,0.4022]
[1756401195617,1.1961,4475.4,4474.7,1.1583]
[1756401195817,1.25927,4475.0,4474.9,0.7719]
[1756401196022,2.45537,4475.0,4474.9,1.9302]
[1756401197024,0.40217,4475.0,4474.9,1.9302]
[1756401197420,1.25927,4475.0,4474.9,1.9302]
[1756401197622,0.8571,4475.0,4474.9,1.9302]
[1756401197821,1.1961,4475.3,4474.9,0.7719]
[1756401198018,3.2078,4475.5,4475.2,0.7719]
[1756401198316,1.1961,4475.1,4474.9,1.56047]
[1756401198522,2.0532,4475.1,4475.0,1.9302]
[1756401198725,0.8571,4475.5,4475.4,0.7719]
[1756401199125,2.0532,4475.5,4475.4,1.9302]
[1756401199418,3.2078,4476.0,4475.4,1.9302]
[1756401199419,0.4021,4475.8,4475.4,1.17403]
[1756401199625,1.1961,4475.9,4475.8,0.40209]
[1756401199820,3.2078,4476.0,4475.9,1.1583]
[1756401199821,3.60988,4476.0,4475.9,1.1583]
[1756401200021,3.2078,4476.5,4475.9,1.1583]
[1756401200229,32.181,4476.9,4476.4,1.17394]
[1756401200420,1.1961,4476.8,4476.2,0.40205]
[1756401200720,3.2078,4477.1,4476.6,0.7719]
[1756401200927,3.2078,4477.1,4477.0,0.7719]
[1756401201120,3.2078,4477.1,4477.0,1.9302]
[1756401201818,1.1961,4477.5,4477.1,0.40198]
[1756401202026,2.0532,4477.5,4477.4,0.7719]
[1756401202324,5.261,4477.5,4477.4,1.9302]
[1756401202626,5.261,4477.5,4477.4,0.7719]
[1756401202825,5.261,4477.5,4477.4,1.9302]
[1756401203928,3.2078,4477.5,4477.4,1.9302]
[1756401204332,1.1961,4478.0,4477.9,1.9302]
[1756401204825,4.4039,4478.2,4478.0,1.1583]
[1756401205031,5.261,4478.2,4478.1,1.9302]
[1756401206024,3.2078,4478.2,4478.1,1.9302]
[1756401206224,2.0532,4478.5,4478.4,2.33206]
[1756401206626,0.8571,4478.5,4478.4,2.33206]
[1756401207227,0.8571,4478.5,4478.4,1.9302]
[1756401207423,0.8571,4478.5,4477.4,1.00488]
[1756401207424,0.8571,4477.2,4477.1,1.1583]
[1756401207627,2.0532,4477.2,4477.1,1.9302]
[1756401208320,1.1961,4477.7,4477.1,1.1583]
[1756401208520,0.40191,4477.9,4477.6,0.7719]
[1756401208830,3.2078,4478.1,4477.2,1.56027]
[1756401208831,1.1961,4478.0,4477.2,1.56027]
[1756401209025,1.1961,4478.0,4477.0,4.3661]
[1756401209231,0.8571,4477.2,4477.1,0.40197]
[1756401209531,2.0532,4477.2,4477.1,2.33217]
[1756401211734,2.0532,4477.2,4477.1,0.7719]
[1756401211934,1.25908,4477.1,4477.0,3.2078]
[1756401212135,2.45518,4477.1,4477.0,3.2078]
[1756401212532,2.0532,4477.1,4477.0,3.2078]
[1756401212732,2.0532,4477.1,4477.0,3.9797]
[1756401213133,2.0532,4477.1,4477.0,5.138]
[1756401213939,2.0532,4477.1,4477.0,3.2078]
[1756401214136,1.25912,4476.6,4476.5,3.2078]
[1756401214439,2.45522,4476.6,4476.5,3.2078]
[1756401214733,0.40206,4476.2,4476.0,1.1583]
[1756401215035,2.45526,4476.2,4476.1,0.7719]
[1756401215232,2.0532,4476.2,4476.1,1.9302]
[1756401215538,2.0532,4476.0,4475.9,3.9797]
[1756401215733,2.0532,4476.0,4475.9,5.138]
[1756401216335,2.0532,4476.0,4475.9,3.9797]
[1756401216634,1.1961,4476.0,4475.4,4.80523]
[1756401216937,1.20482,4475.6,4475.5,0.8304]
[1756401217138,4.21288,4476.6,4475.4,3.2078]
[1756401217139,1.2487,4475.9,4475.6,1.1953]
[1756401217341,0.22341001,4476.5,4475.7,0.4021]
[1756401217639,2.0514,4476.4,4476.3,2.0257]
[1756401218028,1.2487,4476.9,4476.8,0.8304]
[1756401218335,3.2078,4477.2,4477.1,0.8304]
[1756401218536,3.2078,4477.2,4477.1,2.0257]
[1756401219147,5.2592,4477.2,4477.1,2.0257]
[1756401220639,2.0514,4477.2,4477.1,2.0257]
[1756401221443,2.0514,4476.7,4476.6,5.2335]
[1756401221638,2.0514,4476.7,4476.6,2.0257]
[1756401222538,3.2078,4477.1,4476.2,2.0257]
[1756401222539,2.45345,4476.3,4476.2,2.0257]
[1756401222838,2.0514,4476.2,4476.1,3.2078]
[1756401223038,2.0514,4476.2,4476.1,4.0382]
[1756401223242,2.0514,4476.2,4476.1,2.0257]
[1756401224040,0.8027,4476.2,4476.1,2.0257]
[1756401224543,2.0514,4476.2,4476.1,2.0257]
[1756401225346,2.45349,4475.9,4475.8,0.8304]
[1756401225940,2.45349,4475.9,4475.8,2.0257]
[1756401227046,0.40206,4476.2,4475.9,0.40209]
[1756401227247,2.45346,4476.2,4476.1,2.0257]
[1756401227741,0.8027,4476.2,4476.1,2.0257]
[1756401227942,1.2487,4476.6,4476.1,2.42777]
[1756401228142,4.21276,4477.1,4475.6,3.2078]
[1756401228143,1.2487,4477.0,4476.9,0.8304]
[1756401228349,2.45339,4477.0,4476.9,2.0257]
[1756401229247,2.45339,4477.0,4476.9,0.8304]
[1756401230146,1.20472,4476.6,4476.5,2.0257]
[1756401230446,0.402,4476.9,4476.6,0.40202]
[1756401230644,4.0105,4477.1,4477.0,0.8304]
[1756401230842,4.0105,4477.1,4477.0,2.0257]
[1756401230843,3.2078,4477.1,4477.0,2.0257]
[1756401231343,5.2592,4477.1,4477.0,2.0257]
[1756401233350,5.2592,4477.1,4477.0,0.8304]
[1756401233650,5.2592,4477.1,4476.6,0.40202]
[1756401233651,0.402,4476.9,4476.6,0.40202]
[1756401233850,2.4534,4476.8,4476.7,2.0257]
[1756401234047,2.4534,4476.8,4476.1,3.2078]
[1756401234048,1.80772,4476.8,4476.1,3.2078]
[1756401234255,10.04746,4478.1,4475.6,5.20984984]
[1756401234256,0.4021,4475.7,4475.6,5.20984984]
[1756401234455,0.4021,4475.7,4475.6,3.2078]
[1756401234456,2.4535,4475.7,4475.6,3.2078]
[1756401237263,2.4535,4475.7,4475.6,5.2335]
[1756401237464,2.4535,4475.7,4475.6,2.0257]
[1756401241061,1.2487,4476.4,4475.6,0.8304]
[1756401241263,0.8027,4476.5,4476.4,2.0257]
[1756401241662,0.8027,4476.5,4475.7,0.40209]
[1756401241859,0.8027,4476.5,4475.6,3.2078]
[1756401241860,2.45347,4476.1,4476.0,2.0257]
[1756401242174,2.0514,4475.7,4475.6,5.63561]
[1756401242465,0.8027,4476.1,4476.0,2.0257]
[1756401242761,0.40205,4476.3,4476.0,2.42777]
[1756401242959,1.20475,4476.3,4476.2,0.8304]
[1756401243271,1.2048,4475.8,4475.7,2.0257]
[1756401243569,2.25384,4476.3,4475.7,2.0257]
[1756401243768,1.2487,4476.3,4475.7,1.1953]
[1756401243970,0.8027,4476.3,4476.2,2.0257]
[1756401244263,1.2487,4476.8,4476.6,0.40201]
[1756401244462,3.2078,4476.9,4476.3,2.0257]
[1756401244463,3.2078,4476.9,4476.8,1.1953]
[1756401244663,3.2078,4476.9,4476.8,2.0257]
[1756401246172,3.22972965,4476.9,4476.8,2.0257]
[1756401246868,0.02192965,4476.9,4476.8,2.0257]
[1756401247864,1.9448,4477.8,4477.7,1.9932]
[1756401248069,1.9448,4477.8,4477.7,0.7635]
[1756401248568,1.9448,4477.8,4477.7,1.9932]
[1756401249262,1.9448,4477.8,4477.7,0.7635]
[1756401250470,1.9448,4477.8,4477.7,1.9932]
[1756401251365,0.7923,4477.5,4477.4,2.39514]
[1756401251566,1.9448,4477.5,4477.4,2.39514]
[1756401252373,1.9448,4477.5,4476.4,1.00509]
[1756401252374,0.40202,4476.6,4476.5,2.00204984]
[1756401252670,1.9448,4476.2,4476.1,3.2078]
[1756401253469,2.34689,4475.9,4475.8,0.7635]
[1756401253770,2.34689,4475.9,4475.5,1.2297]
[1756401253771,2.34691,4475.6,4475.5,1.9932]
[1756401253970,0.40215,4475.2,4474.9,3.2078]
[1756401254169,2.34695,4475.2,4475.1,0.7635]
[1756401255361,1.55466,4475.1,4474.9,4.4375]
[1756401255564,1.9448,4475.0,4474.9,5.201]
[1756401256168,2.34694,4475.3,4475.2,0.7635]
[1756401257768,1.1525,4475.5,4474.5,1.2297]
[1756401257968,0.40217,4475.0,4474.5,1.63191]
[1756401258169,0.7923,4475.0,4474.9,0.7635]
[1756401258671,1.55471,4474.6,4474.5,0.7635]
[1756401258875,2.34701,4474.6,4474.5,1.9932]
[1756401259370,1.9448,4474.6,4474.5,1.9932]
[1756401259568,0.40219,4474.8,4474.5,1.9932]
[1756401259764,1.19449,4474.8,4474.7,0.7635]
[1756401260070,1.9448,4474.8,4474.7,1.9932]
[1756401262075,1.9448,4475.0,4474.9,0.7635]
[1756401262272,3.2078,4475.8,4475.7,0.7635]
[1756401262273,5.55469,4475.8,4475.7,0.7635]
[1756401262473,5.1526,4475.8,4475.7,1.9932]
[1756401262874,5.1526,4475.8,4475.7,0.7635]
[1756401263180,1.9448,4475.4,4475.3,1.9932]
[1756401265772,0.4021,4475.8,4475.3,1.9932]
[1756401265976,1.1525,4476.2,4475.7,1.9932]
[1756401266176,2.34689,4475.9,4475.8,1.9932]